[Event "Romanian Rapid Open 2022"]
[Site "Sebes"]
[Date "2022.12.02"]
[Round "3.31"]
[White "Tarciuc, Ianis-Mihai"]
[Black "Craciun, Sasha-Matei"]
[Result "0-1"]
[ECO "E11"]
[WhiteElo "1642"]
[BlackElo "2001"]
[Annotator "TA"]
[PlyCount "84"]
[EventDate "2022.12.02"]
[EventType "rapid"]
[EventCountry "ROU"]
[SourceTitle "playchess.com"]
[Source "ChessBase"]
[SourceQuality "1"]
[TimeControl "600+5"]

{[%evp 11,84,9,7,-4,-9,-14,-14,-28,-16,-28,-29,-42,-14,-34,-14,-32,-19,-55,-24,-31,-6,-90,-58,-68,-39,-109,-112,-106,-108,-108,-106,-92,-72,-76,-76,-76,-45,-60,-47,-58,-45,-64,-61,-61,-56,-93,-85,-121,-116,-154,-147,-200,-125,-169,-162,-166,-126,-163,-173,-154,-158,-222,-211,-395,-395,-463,-454,-685,-593,-665,-593,-29992,-29993,-29998,-29997]} 1. c4 {[%emt 0:00:02]} e6 {[%emt 0:00:02]} 2. g3 {[%emt 0:00:02]} d5 {[%emt 0:00:05]} 3. Bg2 {[%emt 0:00:03]} Nf6 {[%emt 0:00:03]} 4. d4 {[%emt 0:00:03]} Bb4+ {[%emt 0:00:08]} 5. Bd2 {[%emt 0:00:09]} Be7 {[%emt 0:00:02]} 6. Nf3 {[%emt 0:00:16]} O-O {[%emt 0:00:03]} 7. cxd5 {[%emt 0:00:13] E11: Bogo-Indian.} exd5 {[%emt 0:00:02]} 8. O-O {[%emt 0:00:02]} c6 {[%emt 0:00:41]} 9. Nc3 {[%emt 0:00:17][%cal Bb1c3,Bc3a4,Ba4c5][%mdl 32] The position is equal.} Bf5 {[%emt 0:00:14]} 10. a3 {[%emt 0:00:17]} Nbd7 {[%emt 0:00:16] [#]} 11. Rc1 $146 {[%emt 0:00:07]} ({Predecessor:} 11. Re1 h6 12. Bf4 Re8 13. Qd2 Bf8 14. Nh4 Bh7 15. Nf3 a5 16. Na4 Ne4 17. Qc1 {0-1 (49) Hayashi,K (1219)-Maraz,R (1618) Sao Paulo 2017}) 11... Bd6 {[%emt 0:00:18]} 12. Na4 {[%emt 0:00:30]} h6 {[%emt 0:00:45]} 13. e3 {[%emt 0:00:21]} Ne4 {[%emt 0:00:30]} (13... Bc7 {simplifies} 14. Nc5 Nxc5 15. dxc5 Re8) 14. b4 {[%emt 0:00:33]} (14. Bb4 {simplifies} Bxb4 15. axb4 Nd6 16. Nc5) 14... a5 {[%emt 0:00:28]} 15. Nc5 {[%emt 0:00:32]} Ra7 {[%emt 0:01:07]} 16. Ne1 {[%emt 0:04:34]} (16. Nh4 $11 {keeps the balance.} Bh7 17. Nxe4 dxe4 18. Bh3) 16... Nxd2 {[%emt 0:06:41]} 17. Qxd2 {[%emt 0:00:03][%cal Ob4b5]} Nb6 {[%emt 0:00:00] Prevents b5.} 18. Ned3 {[%emt 0:00:36]} (18. Qc3 $15) 18... Nc4 $17 {[%emt 0:00:00]} 19. Qc3 {[%emt 0:00:04]} axb4 {[%emt 0:00:00]} 20. axb4 {[%emt 0:01:59]} Ra3 {[%emt 0:00:00] Against Ra1} 21. Nb3 {[%emt 0:00:28]} Bxd3 {[%emt 0:00:00] Black is much more active.} (21... Qg5 {seems wilder.} 22. Ndc5 b6 23. Ne4 Bxe4 24. Bxe4 Qe7) 22. Qxd3 {[%emt 0:00:02]} Bxb4 {[%emt 0:00:00][%cal Oc4d2] [#] ...Nd2! is the strong threat.} 23. Ra1 {[%emt 0:00:07]} b5 {[%emt 0:00:00][%cal Bb7b5,Bb5b4,Bb4b3,Bb3b2][%mdl 32]} 24. Rxa3 {[%emt 0:00:09]} Bxa3 {[%emt 0:00:00]} 25. Ra1 {[%emt 0:00:12]} Qb6 {[%emt 0:00:00]} 26. Nd2 {[%emt 0:00:23] [#] Strongly threatening Nxc4.} Nxd2 {[%emt 0:00:00]} 27. Qxd2 {[%emt 0:00:04]} Bd6 {[%emt 0:00:00]} 28. Rc1 {[%emt 0:00:08]} b4 {[%emt 0:00:00]} 29. Bh3 {[%emt 0:00:06][%cal Bg2h3,Bh3f5,Bf5d3][%mdl 32]} b3 {[%emt 0:00:00]} 30. Rb1 {[%emt 0:00:07] Prevents b2.} Rb8 {[%emt 0:00:00][%cal Bf8b8,Bb8b3,Bb3c3][%mdl 32]} 31. Qc3 {[%emt 0:00:01]} (31. Qb2 $17) 31... Qb7 {[%emt 0:00:00]} 32. Bf5 {[%emt 0:00:06]} b2 {[%emt 0:00:00]} 33. Bd3 {[%emt 0:00:07]} Qb3 {[%emt 0:00:00]} 34. Qc2 {[%emt 0:00:05]} Qa3 {[%emt 0:00:19]} 35. Kf1 {[%emt 0:00:03]} Rb3 {[%emt 0:00:07]} 36. Ke2 {[%emt 0:00:05]} (36. Be2 $17) 36... Rc3 {[%emt 0:00:09]} 37. Qxb2 {[%emt 0:00:05]} (37. Qd2) 37... Rxd3 $19 {[%emt 0:01:10]} 38. Qb6 {[%emt 0:00:05]} Rc3 {[%emt 0:00:00]} 39. Qd8+ {[%emt 0:00:03]} (39. Kf1 $142) 39... Kh7 {[%emt 0:00:00] ( -> ...Qa2+)} 40. Rd1 {[%emt 0:00:06]} Rc2+ {[%emt 0:00:00]} 41. Rd2 {[%emt 0:00:04]} Qa6+ {[%emt 0:00:00]} 42. Ke1 {[%emt 0:00:08]} Bb4 {[%emt 0:00:00] Weighted Error Value: White=0.61/Black=0.18 (very precise)} 0-1

[Event "Romanian Rapid Open 2022"]
[Site "Sebes"]
[Date "2022.12.02"]
[Round "3.32"]
[White "Radu, Robert-Daniel"]
[Black "Samu, Sorin-Mihai"]
[Result "0-1"]
[ECO "B07"]
[WhiteElo "1510"]
[BlackElo "1955"]
[Annotator "TA"]
[PlyCount "60"]
[EventDate "2022.12.02"]
[EventType "rapid"]
[EventCountry "ROU"]
[SourceTitle "playchess.com"]
[Source "ChessBase"]
[SourceQuality "1"]
[TimeControl "600+5"]

{[%evp 10,60,50,37,66,64,82,83,81,51,42,-53,-45,-63,-60,-65,-64,-85,-84,-87,-76,-89,-92,-179,-50,-73,-58,-84,-80,-86,-91,-111,-74,-91,-50,-78,-77,-85,-79,-326,-326,-320,-318,-319,-275,-264,-267,-426,-259,-268,-242,-291,-239]} 1. e4 {[%emt 0:00:02]} d6 {[%emt 0:00:00]} 2. d4 {[%emt 0:00:02]} Nf6 {[%emt 0:00:01]} 3. Bd3 {[%emt 0:00:03]} c5 {[%emt 0:00:02]} 4. c3 {[%emt 0:00:09][%cal Bc2c3,Bc3d4,Bd4d5][%mdl 32]} cxd4 {[%emt 0:00:01]} 5. cxd4 {[%emt 0:00:02]} Nc6 {[%emt 0:00:01]} 6. Nf3 {[%emt 0:00:02]} e5 {[%emt 0:00:01] B07: Pirc Defence: Miscellaneous Systems.} 7. d5 {[%emt 0:00:35]} Nb8 {[%emt 0:00:03]} 8. O-O {[%emt 0:00:03]} Be7 {[%emt 0:00:01] [#] White is better.} 9. Bg5 $146 {[%emt 0:00:09]} ({Predecessor:} 9. Nc3 O-O 10. h3 Nbd7 11. Be3 Nb6 12. Rc1 Bd7 13. Qb3 Rc8 14. a4 Rb8 15. Rc2 {½-½ (38) Gross,K (2037)-Schmerwitz,R (1838) Goch 2015}) 9... O-O {[%emt 0:00:02][%cal Of6d5]} 10. h3 {[%emt 0:00:07] [#]} (10. Be3 $14) 10... Nxd5 $1 $15 {[%emt 0:00:09]} 11. Bxe7 {[%emt 0:00:31]} (11. Bd2 Nb6) 11... Nxe7 {[%emt 0:00:02]} 12. Nc3 {[%emt 0:00:02]} Nbc6 {[%emt 0:00:08]} 13. a3 {[%emt 0:00:08]} a6 {[%emt 0:00:08]} 14. Rc1 {[%emt 0:00:04]} h6 {[%emt 0:00:03]} 15. b4 {[%emt 0:00:05]} Be6 {[%emt 0:00:02]} 16. Nd5 {[%emt 0:00:06]} (16. Bc2 $17) 16... f5 {[%emt 0:00:12]} ({Black should try} 16... Nxd5 $19 17. exd5 Bxd5 18. Bh7+ Kxh7 19. Qxd5 f5) 17. Nxe7+ {[%emt 0:00:08]} Qxe7 {[%emt 0:00:03]} 18. exf5 {[%emt 0:00:38]} Bxf5 {[%emt 0:00:05]} 19. Bxf5 {[%emt 0:00:02]} Rxf5 {[%emt 0:00:02]} 20. Qd5+ {[%emt 0:01:18]} Kh8 {[%emt 0:00:03]} (20... Qf7 {looks sharper.} 21. Rfd1 Rd8 22. b5 axb5 23. Rb1 Qxd5 24. Rxd5 b4) 21. Rcd1 {[%emt 0:00:11]} Rd8 {[%emt 0:00:09]} 22. Rfe1 {[%emt 0:00:12][%cal Of3d4]} Qf7 {[%emt 0:00:09]} 23. Qxf7 {[%emt 0:00:47]} Rxf7 {[%emt 0:00:05]} 24. Nxe5 $2 {[%emt 0:00:08] [#] Now White is beyond hope.} dxe5 $19 {[%emt 0:00:12]} 25. Rxd8+ {[%emt 0:00:14]} Nxd8 {[%emt 0:00:02]} 26. Rxe5 $17 {[%emt 0:00:01] KRN-KR} Nc6 {[%emt 0:00:01]} 27. Rd5 {[%emt 0:00:10]} Re7 {[%emt 0:00:04]} 28. b5 {[%emt 0:00:01]} (28. f4 {was necessary.}) 28... axb5 {[%emt 0:00:02]} 29. Rxb5 {[%emt 0:00:02]} Nd4 {[%emt 0:00:05]} 30. Rd5 {[%emt 0:00:11]} Nc2 {[%emt 0:00:05] Weighted Error Value: White=0.41/Black=0.34} 0-1

[Event "Romanian Rapid Open 2022"]
[Site "Sebes"]
[Date "2022.12.02"]
[Round "3.33"]
[White "Ghita, Vlad-Bogdan"]
[Black "Santimbrean, Mihnea-Nicolae"]
[Result "1-0"]
[ECO "C06"]
[WhiteElo "1938"]
[BlackElo "1491"]
[Annotator "TA"]
[PlyCount "60"]
[EventDate "2022.12.02"]
[EventType "rapid"]
[EventCountry "ROU"]
[SourceTitle "playchess.com"]
[Source "ChessBase"]
[SourceQuality "1"]
[TimeControl "600+5"]

{[%evp 25,60,0,93,59,71,86,71,70,64,9,0,0,14,-9,-12,0,31,33,33,31,22,20,22,23,30,0,-10,-33,18,-45,288,46,86,0,1015,1025,2075]} 1. e4 {[%emt 0:00:02]} e6 {[%emt 0:00:01]} 2. d4 {[%emt 0:00:03]} d5 {[%emt 0:00:01]} 3. Nd2 {[%emt 0:00:02]} Nf6 {[%emt 0:00:03]} 4. e5 {[%emt 0:00:02]} Nfd7 {[%emt 0:00:02]} 5. Bd3 {[%emt 0:00:02]} c5 {[%emt 0:00:02]} 6. c3 {[%emt 0:00:02]} Qb6 {[%emt 0:00:02]} 7. Ngf3 {[%emt 0:00:04]} Nc6 {[%emt 0:00:03]} 8. O-O {[%emt 0:00:02]} cxd4 {[%emt 0:00:28]} 9. cxd4 {[%emt 0:00:02]} Nxd4 {[%emt 0:00:29]} 10. Nxd4 {[%emt 0:00:02]} Qxd4 {[%emt 0:00:02]} 11. Nf3 {[%emt 0:00:01]} Qb6 {[%emt 0:00:09]} 12. Qa4 {[%emt 0:00:02]} Qb4 {[%emt 0:00:47]} 13. Qc2 {[%emt 0:00:01]} h6 {[%emt 0:00:51]} (13... Nc5 $11) 14. a3 {[%emt 0:00:08] C06: French Tarrasch: 3...Nf6 4 e5 Nfd7 5 Bd3 main lines.} Qb6 {[%emt 0:00:14] [#]} 15. Qa4 $1 {[%emt 0:00:08]} Be7 {[%emt 0:00:10]} 16. Be3 {[%emt 0:00:23] White is better.} Bc5 {[%emt 0:00:50] [#]} 17. Bxc5 $146 {[%emt 0:00:09] White is much more active.} (17. Bd2 $1 $14) ({Predecessor:} 17. Bd2 O-O 18. Qg4 f5 19. Qg3 Kh8 20. Qg6 Be7 21. Bxh6 gxh6 22. Qxh6+ Kg8 23. Qg6+ Kh8 24. Rae1 Qd8 25. Re3 Nc5 26. Rc1 Bd7 27. Rxc5 b6 28. Ng5 Bxg5 29. Rh3+ Bh4 30. Rc7 {1-0 (28) Farmer,M (1807)-Ferreira,L (1828) ICCF email 2017}) 17... Qxc5 $11 {[%emt 0:00:04]} 18. Rfc1 {[%emt 0:00:06]} Qb6 {[%emt 0:00:04]} 19. Rc2 {[%emt 0:00:02]} O-O {[%emt 0:00:49]} 20. Rac1 {[%emt 0:00:13]} f6 {[%emt 0:01:28]} 21. exf6 {[%emt 0:01:23]} ({Reject} 21. Rxc8 Rfxc8 22. Rxc8+ Rxc8 $17) 21... Nxf6 {[%emt 0:00:08]} 22. Ne5 {[%emt 0:00:08]} Qd6 {[%emt 0:01:25]} 23. f4 {[%emt 0:00:46][%mdl 1024] White has compensation.} Bd7 {[%emt 0:01:44]} 24. Qd4 {[%emt 0:00:18]} a6 {[%emt 0:01:31]} 25. Re2 {[%emt 0:00:05]} Rac8 {[%emt 0:00:13]} 26. Rce1 {[%emt 0:00:01]} Rfe8 {[%emt 0:00:25]} (26... Bb5 $15) 27. b4 {[%emt 0:00:13]} ({Better is} 27. g4 $11 Bb5 28. Bxb5 axb5 29. g5 hxg5 30. fxg5) 27... b5 $2 {[%emt 0:00:07][%mdl 8192] [#]} (27... Bb5 $15 {stays ahead.}) 28. Bb1 $2 {[%emt 0:00:15]} (28. g4 $1 $18 {[%cal Rg4g5]}) 28... Bc6 {[%emt 0:00:02]} 29. Qd3 {[%emt 0:00:12]} ({Much worse is} 29. Qa7 $6 Bb7 $11) (29. g4 $16 {Black must now prevent g5.} Qe7 30. Bg6) 29... Ne4 {[%emt 0:00:04][%mdl 8192] [#]} (29... Bb7 $11) 30. Rxe4 $1 $18 {[%emt 0:00:03][%mdl 576] Pin} d4 {[%emt 0:00:17] Weighted Error Value: White=0.39/Black=0.50} (30... Qf8 31. Rc4) 1-0

[Event "Romanian Rapid Open 2022"]
[Site "Sebes"]
[Date "2022.12.02"]
[Round "3.34"]
[White "Roncea, Ioan-Aurel"]
[Black "Matasaru, Stephanie"]
[Result "0-1"]
[ECO "D23"]
[WhiteElo "1461"]
[BlackElo "1975"]
[Annotator "TA"]
[PlyCount "96"]
[EventDate "2022.12.02"]
[EventType "rapid"]
[EventCountry "ROU"]
[SourceTitle "playchess.com"]
[Source "ChessBase"]
[SourceQuality "1"]
[TimeControl "600+5"]

{[%evp 9,96,25,35,6,13,16,45,20,16,16,20,-16,46,0,27,25,14,15,25,8,61,49,52,63,120,130,129,84,87,21,34,0,50,0,29,29,64,21,52,0,0,-6,0,0,0,0,0,0,0,0,0,0,0,-48,-48,-42,0,-177,-156,-331,-317,-317,-310,-276,-181,-238,-146,-337,-314,-764,-773,-748,-727,-29972,-2375,-1342,-2346,-1284,-1286,-29980,-29981,-29981,-29982,-29982,-29983,-29984,-29985,-29985,-29986]} 1. d4 {[%emt 0:00:04]} d5 {[%emt 0:00:01]} 2. Nf3 {[%emt 0:00:09]} Nf6 {[%emt 0:00:02]} 3. c4 {[%emt 0:00:04]} dxc4 {[%emt 0:00:01]} 4. Qa4+ {[%emt 0:00:02]} Bd7 {[%emt 0:00:17]} 5. Qxc4 {[%emt 0:00:04]} e6 {[%emt 0:00:06]} 6. Nc3 {[%emt 0:00:09] D23: Queen's Gambit Accepted: 3 Nf3 Nf6 sidelines.} a6 {[%emt 0:00:27]} 7. Bg5 {[%emt 0:00:06]} Be7 {[%emt 0:00:16] [#]} 8. Bxf6 $146 {[%emt 0:00:04] White is slightly better.} ({Predecessor:} 8. e4 h6 9. Bxf6 Bxf6 10. e5 Be7 11. Bd3 O-O 12. Bc2 Nc6 13. Qd3 g6 14. a3 {1-0 (23) Dalen,M-Jatkowski,S ICCF email 2018}) 8... Bxf6 {[%emt 0:00:03]} 9. e3 {[%emt 0:00:01]} O-O {[%emt 0:00:04]} 10. Qb3 {[%emt 0:10:12]} b5 {[%emt 0:01:20]} ({Black should try} 10... c5 $11) 11. Be2 {[%emt 0:00:00]} (11. Qc2 $14) 11... Be7 {[%emt 0:00:32]} 12. O-O {[%emt 0:00:00]} c5 {[%emt 0:00:05]} 13. dxc5 {[%emt 0:00:00]} Bxc5 {[%emt 0:00:04]} 14. Rac1 {[%emt 0:00:00][%cal Rc3b5]} Bb6 {[%emt 0:00:27]} (14... Be7 $11) 15. Rfd1 {[%emt 0:00:00]} Qe7 {[%emt 0:00:29]} 16. Ne5 {[%emt 0:00:00] Prevents Nc6.} f6 {[%emt 0:00:23]} ({Better is} 16... Be8 $14) 17. Nxd7 $16 {[%emt 0:00:00]} Nxd7 {[%emt 0:00:02][%cal Bb8d7,Bd7c5,Bc5a4,Ba4c3][%mdl 32]} 18. Ne4 {[%emt 0:00:00] Hoping for Rc6.} f5 {[%emt 0:00:26] [#]} 19. Ng3 {[%emt 0:00:00]} (19. Ng5 $1 $16 Rae8 20. Qd3) 19... Nc5 $11 {[%emt 0:00:24]} 20. Qc2 {[%emt 0:00:00]} Rad8 {[%emt 0:00:55]} (20... f4 $11 21. exf4 Rxf4) 21. h3 {[%emt 0:00:00]} (21. b4 $14 Na4 22. Qc6) 21... Rxd1+ {[%emt 0:00:39]} 22. Rxd1 {[%emt 0:00:00]} Bc7 {[%emt 0:01:16]} 23. Nf1 {[%emt 0:00:00]} Be5 {[%emt 0:00:12]} 24. b4 {[%emt 0:00:00]} (24. Rc1 $14 Nd7 25. a4) 24... Na4 {[%emt 0:00:03]} 25. a3 {[%emt 0:00:00]} Nc3 {[%emt 0:00:06]} 26. Rd3 {[%emt 0:00:00]} Nxe2+ {[%emt 0:01:18]} 27. Qxe2 {[%emt 0:00:00]} Rc8 {[%emt 0:00:04]} 28. f4 {[%emt 0:00:00]} Bf6 {[%emt 0:00:03]} 29. Qd1 {[%emt 0:00:02]} Rd8 {[%emt 0:01:17]} 30. Rxd8+ {[%emt 0:00:04]} Qxd8 {[%emt 0:00:01]} 31. Qxd8+ {[%emt 0:00:03]} (31. Qc2 $11) 31... Bxd8 {[%emt 0:00:02][%mdl 4096] Endgame KB-KN} 32. Nd2 {[%emt 0:00:05]} Bf6 {[%emt 0:00:03] White must now prevent ...Bb2.} 33. Nb1 $2 {[%emt 0:00:02]} (33. Nb3 $1 $11 {and White stays safe.}) 33... Kf7 $19 {[%emt 0:00:06]} 34. g4 $2 {[%emt 0:00:01]} (34. Kf1 $17 {might work better.}) 34... fxg4 {[%emt 0:00:03]} 35. hxg4 {[%emt 0:00:02]} h6 {[%emt 0:00:02]} 36. Kf2 {[%emt 0:00:02]} Ke7 {[%emt 0:00:02]} 37. Kf3 {[%emt 0:00:02]} (37. Ke2 {was worth a try.}) 37... Kd6 {[%emt 0:00:03] Threatens to win with ...Bb2.} 38. e4 $2 {[%emt 0:00:05] This move loses the game for White.} (38. Ke2 $17) 38... Bb2 {[%emt 0:00:11]} 39. f5 $2 {[%emt 0:00:05]} (39. Ke3 Bc1+ 40. Kf3) 39... exf5 {[%emt 0:00:14]} 40. exf5 {[%emt 0:00:10]} Kd5 {[%emt 0:00:24]} 41. Kf4 {[%emt 0:00:07]} Bc1+ {[%emt 0:00:07]} (41... Kd4 $142 42. Nd2 Bc1 43. Kf3 Bxd2 44. Ke2 Be3 45. Kf3 Bc1 46. g5 hxg5 47. Kg4 Bxa3 48. Kg3 Bxb4 49. Kg4 a5 50. Kh5 a4 51. Kg6 Ke4 52. Kf7 a3 53. f6 gxf6 54. Ke8 a2 55. Kd7 a1=Q 56. Kc6 Qa6+ 57. Kc7 Kf5 58. Kd7 Qb7+ 59. Kd8 g4 60. Ke8 Qe7#) 42. Kf3 {[%emt 0:00:03]} Kc4 {[%emt 0:00:02]} 43. Ke2 {[%emt 0:00:06]} Kb3 {[%emt 0:00:02][%cal Ob3c2] [#] ( -> ...Kc2!)} 44. Nd2+ {[%emt 0:00:06]} Bxd2 {[%emt 0:00:20] Black mates.} 45. Kxd2 {[%emt 0:00:01]} Kxa3 {[%emt 0:00:02]} 46. Kc3 {[%emt 0:00:02]} Ka4 {[%emt 0:00:01]} 47. Kc2 {[%emt 0:00:15]} Kxb4 {[%emt 0:00:02]} 48. Kb2 {[%emt 0:00:01]} a5 {[%emt 0:00:02] Weighted Error Value: White=0.72/Black=0.33} 0-1

[Event "Romanian Rapid Open 2022"]
[Site "Sebes"]
[Date "2022.12.02"]
[Round "3.35"]
[White "Buciuman, Aurel"]
[Black "Nagy-Elek, Tamas"]
[Result "0-1"]
[ECO "B12"]
[WhiteElo "1369"]
[BlackElo "1976"]
[Annotator "TA"]
[PlyCount "102"]
[EventDate "2022.12.02"]
[EventType "rapid"]
[EventCountry "ROU"]
[SourceTitle "playchess.com"]
[Source "ChessBase"]
[SourceQuality "1"]
[TimeControl "600+5"]

{[%evp 11,102,-3,-2,-54,-57,-61,-26,-63,-57,-87,-75,-81,-83,-125,-129,-147,-57,-64,-88,-118,-116,-266,-218,-218,-219,-347,-293,-309,-306,-350,-202,-189,-172,-404,-389,-468,-452,-480,-474,-461,-447,-500,-497,-522,-418,-512,-504,-497,-491,-433,-391,-391,-391,-391,-390,-390,-359,-390,-360,-352,-262,-262,-262,-224,-236,-736,-733,-714,-673,-1083,-1042,-987,-962,-1121,-1053,-1903,-2819,-2637,-2495,-5068,-4914,-29980,-1739,-29983,-29984,-29983,-29984,-29985,-29985,-29990,-29991,-29992,-29993]} 1. e4 {[%emt 0:00:03]} c6 {[%emt 0:00:02]} 2. d4 {[%emt 0:00:06]} d5 {[%emt 0:00:03]} 3. e5 {[%emt 0:00:18]} Bf5 {[%emt 0:00:05]} 4. Bd3 {[%emt 0:00:03]} Bxd3 {[%emt 0:00:20]} 5. Qxd3 {[%emt 0:00:02]} e6 {[%emt 0:00:04]} 6. f4 {[%emt 0:00:25]} Ne7 {[%emt 0:00:25]} 7. g4 {[%emt 0:00:35] B12: Caro-Kann: Advance Variation.} (7. Nc3 $11) 7... h5 {[%emt 0:00:06]} 8. g5 {[%emt 0:00:30]} g6 {[%emt 0:00:48]} 9. Nf3 {[%emt 0:00:33] Black has an edge.} Nf5 {[%emt 0:00:06] [#]} 10. c3 $146 {[%emt 0:00:23]} ({Predecessor:} 10. b3 Nd7 11. c4 dxc4 12. bxc4 Bb4+ 13. Ke2 Nb6 14. Rd1 Rb8 15. Ba3 Qe7 16. Bxb4 Qxb4 {1-0 (50) Hernandez Garcia,C (1727)-Marivela Santos,J (1714) Madrid 2018}) 10... c5 {[%emt 0:00:15]} 11. dxc5 {[%emt 0:00:29]} Bxc5 {[%emt 0:00:35]} 12. Qb5+ {[%emt 0:00:38]} Nd7 {[%emt 0:00:02]} 13. b4 {[%emt 0:00:34]} Qb6 {[%emt 0:00:51]} (13... a6 $17 14. Qd3 Ba7) 14. Qxb6 {[%emt 0:00:33]} Bxb6 {[%emt 0:00:01]} 15. a4 {[%emt 0:00:12] [#]} a5 $1 {[%emt 0:00:49] Black is more active.} 16. b5 {[%emt 0:00:53] This move loses the game for White.} (16. Ke2 $17) 16... O-O {[%emt 0:00:32][%cal Bh8f8,Bf8c8,Bc8c7,Bc7c4][%mdl 32]} 17. Ke2 {[%emt 0:00:38]} Rfc8 {[%emt 0:00:23]} 18. Bd2 {[%emt 0:00:40]} (18. Nfd2 $142) 18... Rc7 {[%emt 0:01:06]} 19. Na3 {[%emt 0:00:17]} Nc5 {[%emt 0:00:40]} 20. Nc2 {[%emt 0:00:35]} Nb3 {[%emt 0:00:32]} (20... Ne4 $142 21. Rhc1 Rac8) 21. Ra3 $19 {[%emt 0:00:42]} Nxd2 {[%emt 0:00:13]} 22. Kxd2 {[%emt 0:00:11]} (22. Nxd2 {was the only chance.} Rac8 23. Kd3) 22... Rc4 {[%emt 0:00:16]} 23. Nfd4 {[%emt 0:02:01]} Nxd4 {[%emt 0:00:14]} 24. cxd4 {[%emt 0:00:11]} Bxd4 {[%emt 0:00:34]} 25. Nxd4 {[%emt 0:00:12]} Rxd4+ {[%emt 0:00:02][%mdl 4096] Endgame KRR-KRR} 26. Ke3 {[%emt 0:00:02]} Re4+ {[%emt 0:00:19]} 27. Kf3 {[%emt 0:00:27]} Rc4 {[%emt 0:00:03] Against Rc1} 28. Re1 {[%emt 0:00:06]} b6 {[%emt 0:00:23]} 29. Ree3 {[%emt 0:00:03]} Rac8 {[%emt 0:00:06]} 30. Kg3 {[%emt 0:00:03]} d4 {[%emt 0:00:55]} 31. Red3 {[%emt 0:00:06]} Rb4 {[%emt 0:00:27]} 32. Kf3 {[%emt 0:00:04]} Rcc4 {[%emt 0:00:06]} 33. Ke4 {[%emt 0:00:05]} Kf8 {[%emt 0:00:37]} ({Not} 33... Rxa4 34. Rxa4 Rxa4 35. Rxd4 $17) 34. h3 {[%emt 0:00:02]} Ke7 {[%emt 0:00:11]} ({Weaker is} 34... Rxa4 35. Rxa4 Rxa4 36. Rxd4 $19) 35. h4 {[%emt 0:00:02]} Rxa4 {[%emt 0:00:26]} 36. Rxa4 {[%emt 0:00:03]} Rxa4 {[%emt 0:00:01]} 37. Rxd4 {[%emt 0:00:05] [#] KR-KR} Ra1 {[%emt 0:00:15]} 38. Rc4 $2 {[%emt 0:00:07]} (38. Rd6 a4 39. Rd4 (39. Rxb6 $2 {perishes.} a3 $19)) 38... Rb1 {[%emt 0:00:09]} 39. Rc7+ {[%emt 0:00:02]} Kf8 {[%emt 0:00:03]} 40. Rb7 {[%emt 0:00:04]} Rxb5 {[%emt 0:00:01]} 41. Kd3 {[%emt 0:00:05]} Rb4 {[%emt 0:00:03] Hoping for ...Kg7.} 42. Ke3 {[%emt 0:00:03]} a4 {[%emt 0:00:03]} 43. Kd3 {[%emt 0:00:06]} Rxf4 {[%emt 0:00:07]} 44. Rxb6 {[%emt 0:00:01]} Rxh4 {[%emt 0:00:01]} 45. Ra6 {[%emt 0:00:06]} Rg4 {[%emt 0:00:03] ( -> ...h4)} 46. Ra7 {[%emt 0:00:03]} Rxg5 {[%emt 0:00:06]} (46... h4 $142 47. Ra8+ Kg7 48. Rc8 h3 49. Rc2 Rg2 50. Rc1 h2 51. Rh1 a3 52. Kc3 Rg3+ 53. Kd2 Rg1 54. Rxh2 a2 55. Kd3 a1=Q 56. Kc4 Qa4+ 57. Kc3 Rg3+ 58. Kb2 Qb3+ 59. Kc1 Rc3+ 60. Kd2 Rc2+ 61. Ke1 Qb1#) 47. Kd4 {[%emt 0:00:01]} h4 {[%emt 0:00:04][%cal Bh5h4,Bh4h3,Bh3h2][%mdl 32] Black mates.} 48. Kc5 {[%emt 0:00:03]} h3 {[%emt 0:00:18]} 49. Rxa4 {[%emt 0:00:08]} h2 {[%emt 0:00:04]} 50. Ra1 {[%emt 0:00:04]} Rg1 {[%emt 0:00:04]} 51. Ra8+ {[%emt 0:00:03]} Kg7 {[%emt 0:00:01] Weighted Error Value: White=0.88/Black=0.33} 0-1